bitfinex/quotes_ETHUSD_20260304
["timestamp","ask_amount","ask_price","bid_price","bid_amount"]
[1772652515018,0.42660171,2177.0,2176.3,1.122]
[1772652515212,4.57022151,2176.8,2176.1,1e-08]
[1772652515443,0.4265733,2176.7,2176.1,1e-08]
[1772652515743,5.0211058,2176.6,2176.1,1e-08]
[1772652515946,1.57520642,2176.5,2176.1,1e-08]
[1772652516121,0.4265733,2176.4,2176.1,1.12200001]
[1772652516324,1.14863312,2176.5,2176.1,1.12200001]
[1772652516325,0.4265733,2176.3,2176.1,1.12200001]
[1772652516506,0.4265733,2176.2,2176.1,1.12200001]
[1772652517631,0.4265733,2176.2,2176.1,1e-08]
[1772652519038,1.57536477,2176.2,2176.1,1e-08]
[1772652519243,0.4265733,2176.2,2176.1,1.12300001]
[1772652519822,1.57536477,2176.2,2176.1,1e-08]
[1772652520222,1.57536477,2176.2,2176.0,1.123]
[1772652520423,1.14858035,2176.6,2176.0,1.123]
[1772652522343,4.57022151,2177.1,2175.9,1.1489288]
[1772652522657,1.14831656,2177.2,2175.9,1.1489288]
[1772652522658,4.57022151,2176.9,2176.0,1.123]
[1772652523033,4.57022151,2176.9,2175.8,1.14897808]
[1772652523239,4.57022151,2176.9,2175.9,1.123]
[1772652524042,1.15024025,2177.3,2175.9,5.91179289]
[1772652524238,0.002,2177.3,2176.3,4.78879289]
[1772652524474,0.002,2177.3,2176.4,1.123]
[1772652526856,0.002,2177.3,2176.5,1.14863312]
[1772652529036,0.002,2177.3,2176.4,1.123]
[1772652529245,2.73785332,2177.2,2176.5,1.123]
[1772652529443,0.002,2177.3,2176.5,1.123]
[1772652530043,4.57950217,2177.3,2176.5,1.123]
[1772652530369,2.73794797,2177.2,2176.5,1.123]
[1772652530581,4.57750217,2177.1,2176.0,4.98505855]
[1772652530740,2.73794797,2177.2,2176.1,6.10805855]
[1772652530741,7.31545014,2177.0,2176.1,6.10805855]
[1772652530945,2.73794797,2176.9,2176.1,6.10805855]
[1772652531147,1.14842206,2176.9,2176.2,6.13385002]
[1772652531346,1.14842206,2176.9,2176.3,0.001]
[1772652531652,1.14840923,2177.0,2176.3,4.98605855]
[1772652532049,4.59533571,2177.1,2176.3,4.98605855]
[1772652532050,1.15033128,2177.1,2176.3,4.98605855]
[1772652532451,0.42792597,2177.0,2176.3,4.98605855]
[1772652532675,0.42792597,2176.9,2176.3,4.98605855]
[1772652532875,0.33486049,2176.8,2176.3,4.98605855]
[1772652533069,1.15032034,2177.1,2176.3,4.98605855]
[1772652533972,0.002,2177.1,2176.4,6.13374445]
[1772652536559,2.74090422,2177.0,2176.5,1.124]
[1772652537383,0.002,2177.1,2176.5,1.124]
[1772652537681,0.002,2177.1,2176.5,6.10905855]
[1772652538654,0.002,2177.1,2176.6,1.14858035]
[1772652538951,0.002,2177.1,2176.7,1.124]
[1772652539382,2.74186514,2177.0,2176.3,1.14971814]
[1772652539898,2.74186514,2177.0,2176.3,0.001]
[1772652539899,7.31936731,2177.0,2176.3,0.001]
[1772652540179,7.31936731,2176.9,2176.3,0.001]
[1772652540394,2.74186514,2176.8,2176.3,0.001]
[1772652540597,2.74186514,2176.8,2176.3,1.126]
[1772652540759,3.89038908,2176.8,2176.3,1.126]
[1772652540959,1.14852394,2176.8,2176.3,1.126]
[1772652541163,1.14840851,2177.0,2176.3,6.11105855]
[1772652543110,4.59535921,2177.1,2176.3,6.11105855]
[1772652543278,2.74350382,2177.0,2176.3,4.98605855]
[1772652543479,2.74350382,2177.0,2176.4,1.125]
[1772652543913,7.32100599,2177.0,2176.3,0.001]
[1772652544129,2.74350382,2176.9,2176.5,1.125]
[1772652544404,2.74350382,2176.9,2176.3,1.14973837]
[1772652544813,0.42878859,2176.8,2176.3,1.14973837]
[1772652545126,0.42878859,2176.7,2176.3,1.14973837]
[1772652545312,0.42878859,2176.6,2176.3,0.001]
[1772652545484,0.42878859,2176.5,2176.3,1.127]
[1772652545682,0.42878859,2176.4,2176.1,1.1488407]
[1772652545887,0.42878859,2176.3,2176.1,1.1488407]
[1772652546081,1.14853117,2176.7,2176.1,1.1488407]
[1772652546286,1.14853117,2176.7,2176.0,9.58153325]
[1772652546287,1.14853117,2176.7,2176.0,6.13494628]
[1772652546482,5.72603334,2176.7,2176.0,0.001]
[1772652547096,5.72603334,2176.7,2176.1,1.126]
[1772652547519,7.32296846,2176.6,2176.2,1.126]
[1772652547825,2.74564283,2176.5,2176.1,1.126]
[1772652548522,7.323145,2176.5,2176.0,1.127]
[1772652548700,2.74564283,2176.4,2176.0,1.127]
[1772652549201,2.74564283,2176.4,2175.7,6.13409827]
[1772652549589,3.8943688,2176.4,2175.7,6.13409827]
[1772652549792,2.74564283,2176.3,2175.7,6.13409827]
[1772652549991,4.57750217,2176.8,2175.7,6.13409827]
[1772652550290,4.57750217,2177.0,2175.8,4.98505855]
[1772652550490,4.57750217,2176.8,2175.8,4.98505855]
[1772652550689,4.57750217,2176.6,2175.9,1.127]
[1772652550890,6.7713681,2176.9,2175.9,6.11205855]
[1772652551194,1.15033752,2177.1,2175.9,6.11205855]
[1772652551395,0.002,2177.3,2176.0,5.05059455]
[1772652551609,0.002,2177.3,2176.2,5.05059455]
[1772652553613,0.002,2177.3,2176.4,4.98505855]
[1772652553813,0.002,2177.3,2176.6,4.98505855]
[1772652555722,0.002,2177.3,2176.8,4.98505855]
[1772652557427,0.002,2177.3,2176.7,1.129]
[1772652557428,4.57950217,2177.3,2176.7,1.129]
[1772652557734,5.72576599,2177.2,2176.7,1.129]
[1772652558233,0.42837505,2177.1,2176.7,1.129]
[1772652558412,0.42835903,2177.0,2176.7,1.129]
[1772652558609,5.72576599,2177.2,2176.7,2.27752466]
[1772652558812,0.42835903,2177.1,2176.7,2.27752466]
[1772652559013,0.42835903,2177.0,2176.7,1.129]
[1772652559215,4.57750217,2177.2,2176.7,1.129]
[1772652559415,0.43036805,2177.1,2176.7,1.129]
[1772652559617,0.42836805,2177.0,2176.7,1.129]
[1772652559810,1.15031656,2177.1,2176.7,1.129]
[1772652560005,0.42836805,2177.0,2176.5,1.1495995]
[1772652560209,0.42836805,2176.9,2176.5,1.14962357]
[1772652560507,5.73782608,2177.1,2176.5,1.14962357]
[1772652560807,0.42837478,2177.0,2176.5,1.14962357]
[1772652561142,0.002,2177.1,2176.5,5.77769264]
[1772652561318,1.15021908,2177.3,2176.6,5.75806907]
[1772652561520,5.7377286,2177.3,2176.6,1.13]
[1772652561722,5.7377286,2177.3,2176.7,1.14852758]
[1772652561916,4.58750952,2177.2,2176.6,4.9585393]
[1772652562121,4.58750952,2177.2,2176.7,1.13]
[1772652562642,4.58750952,2177.2,2176.8,1.13]
[1772652563612,0.002,2177.3,2176.8,1.13]
[1772652564014,0.002,2177.3,2176.9,1.14842206]
[1772652565246,0.002,2177.3,2176.8,2.27843186]
[1772652565445,4.58950952,2177.3,2176.9,1.131]
[1772652565944,5.73775979,2177.3,2176.9,1.131]
[1772652566741,4.55390118,2177.1,2176.5,0.001]
[1772652566948,4.55390118,2176.9,2176.5,0.001]
[1772652567236,4.55390118,2176.9,2176.3,0.001]
[1772652568414,1.14847482,2176.8,2176.3,0.001]
[1772652568753,4.55390118,2176.7,2176.3,0.001]
[1772652570824,5.70247183,2176.7,2176.3,0.001]
[1772652571027,4.59318401,2177.2,2176.3,4.5693913]
[1772652571751,5.702165,2177.2,2176.3,4.5693913]
[1772652572668,1.14826382,2177.2,2176.5,4.5683913]
[1772652572823,0.002,2177.3,2176.5,4.5683913]
[1772652573026,1.15021491,2177.3,2176.5,4.5693913]
[1772652573216,0.002,2177.1,2176.5,4.5693913]
[1772652574846,0.002,2177.1,2176.6,1.14858035]
[1772652575050,0.002,2177.1,2176.7,1.135]
[1772652575464,0.002,2177.1,2176.8,1.135]
[1772652575660,4.54572967,2177.3,2176.8,1.135]
[1772652575821,0.42823087,2177.2,2176.8,1.135]
[1772652576022,0.42823087,2177.1,2176.8,1.135]
[1772652576250,4.54572967,2177.3,2176.8,1.135]
[1772652576553,0.42826098,2177.2,2176.8,1.135]
[1772652576762,0.42826098,2177.1,2176.6,1.14858035]
[1772652576921,0.42826098,2177.1,2176.8,1.135]
[1772652576922,0.42826098,2177.0,2176.8,1.135]
[1772652577118,1.14834184,2177.1,2176.8,1.135]
[1772652577322,0.42835959,2177.0,2176.8,1.135]
[1772652577621,1.1483074,2177.2,2176.8,1.135]
[1772652577951,0.42834189,2177.1,2176.8,6.09346769]
[1772652578120,0.42834189,2177.0,2176.8,6.09346769]
[1772652578448,1.15014618,2177.5,2176.8,6.09346769]
[1772652578648,3.17046906,2177.4,2176.8,6.09346769]
[1772652578952,1.57663406,2177.3,2176.8,6.09346769]
[1772652579156,0.42842043,2177.2,2176.8,6.09346769]
[1772652579361,0.42842043,2177.1,2176.8,4.945]
[1772652579659,0.42842043,2177.0,2176.8,3.81]
[1772652579849,0.42842043,2176.9,2176.8,4.947]
[1772652580030,0.42842043,2177.2,2176.8,4.947]
[1772652580225,0.42842043,2177.1,2176.8,4.947]
[1772652580539,0.42842043,2177.0,2176.8,1.137]
[1772652580740,0.42842043,2176.9,2176.8,1.137]
[1772652581852,1.57684249,2176.9,2176.8,1.137]
[1772652582156,1.57684249,2176.9,2176.5,0.001]
[1772652582370,0.42885693,2176.8,2176.5,0.001]
[1772652582530,0.42885693,2176.7,2176.5,0.001]
[1772652582729,0.42885693,2176.7,2176.3,0.001]
[1772652582730,0.42885693,2176.6,2176.3,0.001]
[1772652582956,0.42885693,2176.5,2176.3,0.001]
[1772652583160,0.42885693,2176.4,2176.3,0.001]
[1772652584441,0.42885693,2176.4,2175.6,4.5683913]
[1772652584442,1.57754283,2176.4,2175.6,4.5683913]
[1772652584649,4.98275811,2176.3,2175.7,1.139]
[1772652584966,0.42885693,2176.2,2175.7,1.139]
[1772652585270,0.42885693,2176.1,2175.7,1.139]
[1772652585464,1.57775737,2176.0,2175.7,1.139]
[1772652585635,1.14890044,2176.0,2175.7,1.139]
[1772652586040,5.70273381,2176.2,2175.7,1.139]
[1772652586356,0.4286956,2176.1,2175.7,1.14]
[1772652586562,0.4286956,2176.0,2175.7,1.14]
[1772652586758,1.14883263,2176.2,2176.0,0.001]
[1772652587072,0.42869954,2176.1,2175.7,1.14]
[1772652587370,0.42869954,2176.0,2175.7,1.14]
[1772652587572,1.14900266,2175.8,2175.5,3.81]
[1772652587871,0.42861412,2175.7,2175.4,1.14]
[1772652588074,1.14900266,2175.8,2175.4,1.14]
[1772652588490,0.4283638,2175.7,2175.3,0.00707583]
[1772652588652,0.4283638,2175.6,2175.3,0.00707583]
[1772652588966,0.4283638,2175.6,2175.0,1.141]
[1772652588967,0.4283638,2175.5,2175.0,1.141]
[1772652589166,0.4283638,2175.4,2175.0,1.141]
[1772652589479,4.9424339,2175.7,2174.8,1.141]
[1772652589480,0.42794803,2175.3,2174.8,1.141]
[1772652589655,0.42794803,2175.2,2174.8,2.29052809]
[1772652589854,1.14923648,2175.4,2174.8,1.141]
[1772652590055,4.59672793,2175.5,2174.8,1.141]
[1772652590056,4.9424339,2176.0,2174.9,4.84987562]
[1772652590284,0.4275972,2175.9,2174.9,4.84987562]
[1772652590448,1.14892661,2176.0,2174.9,4.84987562]
[1772652590770,6.09106702,2176.6,2174.9,4.84987562]
[1772652590972,4.9424339,2176.4,2175.1,4.84987562]
[1772652591154,0.4275422,2176.3,2175.1,4.84987562]
[1772652591480,0.4275422,2176.2,2175.1,4.84987562]
[1772652591658,1.14889705,2176.0,2175.3,4.84987562]
[1772652591980,4.59505465,2176.3,2175.3,4.84987562]
[1772652592165,0.42741726,2176.2,2175.3,4.84987562]
[1772652592368,0.42741726,2176.1,2175.3,4.84987562]
[1772652592564,4.59505465,2176.3,2175.3,4.84987562]
[1772652592879,0.42734001,2176.2,2175.3,4.84987562]
[1772652593078,4.59505465,2176.3,2175.3,4.84987562]
[1772652593079,0.42734001,2176.1,2175.3,4.84987562]
[1772652593278,4.59505465,2176.3,2175.3,4.84987562]
[1772652593447,0.42727206,2176.2,2175.3,4.84987562]
[1772652593643,0.42727206,2176.1,2175.3,4.84987562]
[1772652593844,4.59505465,2176.3,2175.4,1.14921393]
[1772652594072,0.42727206,2176.2,2175.5,1.143]
[1772652594276,4.59505465,2176.3,2175.5,5.99287562]
[1772652594277,0.42727206,2176.1,2175.5,5.99287562]
[1772652594476,1.14873868,2176.3,2175.6,1.143]
[1772652594679,0.42724187,2176.2,2175.6,1.143]
[1772652594848,0.42724187,2176.1,2175.6,1.143]
[1772652595044,1.14873868,2176.3,2175.6,1.143]
[1772652595272,0.42725824,2176.2,2175.6,1.143]
[1772652595473,0.42725824,2176.1,2175.6,1.143]
[1772652595678,1.14873868,2176.3,2175.6,1.143]
[1772652595856,0.42727787,2176.2,2175.6,2.29207097]
[1772652596061,1.1487795,2176.3,2175.7,3.81]
[1772652596258,0.42730508,2176.2,2175.7,3.81]
[1772652596554,1.1487795,2176.3,2175.7,3.81]
[1772652596770,0.42726779,2176.2,2175.6,3.81]
[1772652596972,0.42726779,2176.1,2175.6,3.81]
[1772652597173,4.9424339,2176.2,2175.6,3.81]
[1772652597382,0.42728085,2176.1,2175.6,3.81]
[1772652597718,4.9424339,2176.2,2175.6,3.81]
[1772652597881,1.14889705,2176.0,2175.6,3.81]
[1772652598459,5.36967958,2175.9,2175.5,0.001]
[1772652598658,0.42724568,2175.8,2175.5,0.001]
[1772652600080,4.59584567,2175.9,2175.5,0.001]
[1772652600286,1.14894985,2175.9,2175.5,0.001]
[1772652600588,1.1509393,2176.0,2175.5,0.001]
[1772652600791,0.002,2176.0,2175.5,4.85087562]
[1772652601002,6.09333483,2176.0,2175.5,0.001]
[1772652601291,0.4271029,2175.9,2175.5,0.001]
[1772652601452,0.002,2176.0,2175.5,5.99587562]
[1772652601785,0.4270418,2175.9,2175.5,0.001]
[1772652601979,6.51849602,2175.8,2175.3,0.001]
[1772652602194,0.42705946,2175.7,2175.0,1.145]
[1772652602502,5.36949336,2175.7,2174.6,4.84987562]
[1772652602668,4.9424339,2175.5,2174.8,1.146]
[1772652602861,2.34000266,2175.8,2174.8,1.146]
[1772652602862,5.36949336,2175.4,2174.8,1.146]
[1772652603062,0.42705946,2175.3,2174.8,1.146]
[1772652603285,5.36949336,2175.3,2174.4,1.17421915]
[1772652603560,4.9424339,2175.3,2174.4,6.02409477]
[1772652603972,0.42698902,2175.2,2174.4,6.02409477]
[1772652604182,1.1493196,2175.2,2174.4,6.02409477]
[1772652604684,1.1493196,2175.2,2174.3,4.84987562]
[1772652604685,0.42700244,2175.1,2174.3,4.84987562]
[1772652604983,1.1493196,2175.2,2174.3,4.84987562]
[1772652605208,0.42703104,2175.1,2174.3,4.84987562]
[1772652605482,1.14930921,2175.3,2174.4,5.99587562]
[1772652605673,0.4268628,2175.2,2174.5,4.84987562]
[1772652605878,6.09169011,2175.4,2174.6,1.146]
[1772652606079,1.1493196,2175.2,2174.4,1.146]
[1772652606276,1.14921393,2175.4,2174.4,5.99587562]
[1772652606482,5.36923375,2175.3,2174.4,5.99587562]
[1772652606792,5.36923375,2175.2,2174.5,1.147]
[1772652606989,4.9424339,2175.2,2174.5,1.147]
[1772652607486,6.09164783,2175.4,2174.3,2.29679533]
[1772652607683,4.9424339,2175.2,2174.3,2.29679533]
[1772652607885,1.14921393,2175.4,2174.3,2.29679533]
[1772652608089,0.42688024,2175.3,2174.4,4.84987562]
[1772652608388,4.9424339,2175.1,2174.3,1.147]
[1772652608703,5.36931414,2175.0,2174.2,1.147]
[1772652608883,5.36931414,2174.9,2174.2,1.147]
[1772652609087,0.42688024,2174.8,2174.2,1.147]
[1772652609285,5.36931414,2174.8,2174.2,1.147]
[1772652609490,0.42688024,2174.7,2174.0,1.147]
[1772652609679,5.36931414,2174.7,2174.0,1.147]
[1772652609875,5.36931414,2174.6,2173.9,1.147]
[1772652610075,0.42688024,2174.5,2173.7,1.67896899]
[1772652610402,0.42688024,2174.5,2173.7,0.52889824]
[1772652610403,1.14974245,2174.4,2173.7,0.52889824]
[1772652610692,5.02585007,2174.5,2173.8,5.99687562]
[1772652610693,1.14972718,2174.5,2173.8,5.99687562]
[1772652610991,0.42702982,2174.4,2173.8,5.99687562]
[1772652611190,0.42702982,2174.3,2173.9,1.147]
[1772652611391,1.14972718,2174.5,2173.9,1.147]
[1772652611692,0.42700791,2174.4,2173.9,5.99687562]
[1772652611896,2.19386593,2175.2,2173.9,5.99687562]
[1772652611897,4.9424339,2175.6,2173.9,5.99687562]
[1772652612106,0.42690389,2175.5,2174.3,4.84987562]
[1772652612275,1.14908389,2175.7,2174.5,4.84987562]
[1772652612613,0.002,2176.0,2174.5,4.84987562]
[1772652613178,0.002,2175.8,2174.5,4.84987562]
[1772652613584,0.002,2175.8,2174.7,4.84987562]
[1772652613795,0.002,2175.8,2174.9,4.84987562]
[1772652614108,1.15090139,2176.0,2175.1,4.84987562]
[1772652614109,0.002,2176.0,2175.1,4.84987562]
[1772652614406,0.002,2176.0,2175.3,4.84987562]
[1772652614608,0.002,2176.2,2175.3,4.84987562]
[1772652615474,0.002,2176.2,2175.5,4.84987562]
[1772652616288,0.002,2176.2,2175.6,1.14910829]
[1772652616467,0.002,2176.2,2175.7,4.84987562]
[1772652616869,0.002,2176.2,2175.6,1.148]
[1772652617076,0.4271028,2176.1,2175.6,1.148]
[1772652617297,0.002,2176.2,2175.6,5.99787562]
[1772652617875,0.002,2176.2,2175.6,4.84987562]
[1772652618173,0.002,2176.2,2175.7,1.148]
[1772652618699,0.002,2176.2,2175.8,1.14900266]
[1772652619098,0.002,2176.5,2175.8,5.99752957]
[1772652619901,0.002,2177.0,2175.9,4.84852691]
[1772652621002,0.002,2177.0,2176.3,4.84852691]
[1772652621302,0.002,2177.0,2176.5,4.84852691]
[1772652622806,0.002,2177.5,2176.7,4.84852691]
[1772652623108,0.002,2177.8,2176.9,4.84852691]
[1772652623507,0.002,2177.8,2177.0,1.149]
[1772652623682,0.002,2177.8,2177.1,1.149]
[1772652624001,0.002,2177.8,2177.0,1.149]
[1772652624002,4.68561859,2177.8,2177.0,1.149]
[1772652624406,0.002,2177.8,2177.0,5.99752691]
[1772652624702,0.002,2177.8,2177.0,4.84852691]
[1772652624999,0.002,2177.8,2177.1,1.149]
[1772652625208,0.002,2177.8,2177.2,1.14826382]
[1772652625578,0.002,2177.8,2177.2,5.99679073]
[1772652625796,1.14752593,2178.6,2177.2,5.99679073]
[1772652626381,5.80585846,2178.6,2177.3,1.149]
[1772652626707,5.80585846,2178.6,2177.3,4.73027437]
[1772652626907,5.80585846,2178.6,2177.4,5.87927437]
[1772652627084,4.59142155,2179.0,2177.5,1.14810562]
[1772652627285,0.002,2177.8,2177.6,4.73027437]
[1772652627494,4.59142155,2179.0,2177.5,1.14810562]
[1772652627495,4.59142155,2179.0,2177.8,4.73027437]
[1772652627912,0.002,2178.1,2177.8,4.73027437]
[1772652628108,0.002,2179.0,2177.8,4.73027437]
[1772652629085,0.002,2179.0,2178.2,4.73027437]
[1772652629386,0.002,2179.2,2178.4,4.79581037]
[1772652629823,0.002,2179.4,2178.5,4.73027437]
[1772652630384,0.002,2179.4,2178.6,5.88027437]
[1772652630690,0.002,2179.4,2178.2,4.73027437]
[1772652630691,4.66033253,2179.4,2178.2,4.73027437]
[1772652630927,4.65833253,2179.0,2177.8,1.15]
[1772652631294,0.14948499,2178.8,2177.5,1.14806585]
[1772652631611,1.14736793,2178.9,2177.5,5.87834022]
[1772652632745,1.14736793,2178.9,2177.7,4.73027437]
[1772652633012,1.14736793,2178.9,2177.8,1.15]
[1772652633590,4.80781752,2178.9,2177.7,1.14799955]
[1772652633920,4.80781752,2178.9,2177.8,1.15]
[1772652634634,4.58947175,2179.1,2177.8,5.88027437]
[1772652634800,4.58947175,2179.1,2177.7,1.14798645]
[1772652634801,4.65833253,2179.0,2177.7,1.15]
[1772652634986,4.80781752,2178.9,2177.7,1.15]
[1772652635890,5.80575312,2178.8,2177.7,1.15]
[1772652636290,5.80575312,2178.8,2177.5,1.14808878]
[1772652636516,5.80575312,2178.8,2177.6,1.15]
[1772652637320,5.80575312,2178.8,2177.5,1.14808878]
[1772652637511,5.80575312,2178.8,2177.6,1.15]
[1772652637711,1.14742059,2178.8,2177.6,5.88027437]
[1772652638109,1.14726263,2179.1,2177.8,4.73027437]
[1772652638504,4.80781752,2179.0,2177.6,1.14801548]
[1772652638718,4.80781752,2179.0,2177.7,1.15]
[1772652639342,4.80781752,2179.0,2177.7,1.151]
[1772652639539,4.80781752,2179.0,2177.7,9.69127437]
[1772652639751,4.66033253,2179.0,2177.7,9.69127437]
[1772652640250,1.14736793,2178.9,2177.8,1.14794746]
[1772652640948,4.65833253,2178.7,2177.8,1.15]
[1772652641444,4.65833253,2178.7,2177.7,0.001]
[1772652641445,4.65833253,2178.7,2177.7,1.151]
[1772652641653,4.65833253,2178.7,2177.7,2.29898959]
[1772652641940,4.65833253,2178.7,2177.7,2.29899355]
[1772652642325,1.1475786,2178.5,2177.7,2.29899355]
[1772652642521,1.1475786,2178.5,2177.7,1.151]
[1772652644349,1.1475786,2178.5,2177.7,0.001]
[1772652644350,1.14768397,2178.3,2177.7,0.001]
[1772652645248,1.14768397,2178.3,2177.5,0.001]
[1772652645249,5.08330551,2178.2,2177.5,0.001]
[1772652645543,5.08330551,2178.1,2177.5,0.001]
[1772652645753,4.80781752,2177.9,2177.3,0.01640598]
[1772652645921,4.80781752,2177.9,2177.2,0.001]
[1772652645922,5.08330551,2177.8,2177.2,0.001]
[1772652646116,0.42497298,2177.7,2177.2,0.001]
[1772652646344,1.1480529,2177.6,2177.2,0.001]
[1772652646745,0.42558598,2177.5,2177.2,0.001]
[1772652646923,1.1480529,2177.6,2177.2,0.001]
[1772652647120,0.42562115,2177.5,2177.2,0.001]
[1772652647345,0.4259464,2177.4,2177.2,0.001]
[1772652647630,1.1480529,2177.6,2177.2,0.001]
[1772652647849,0.42592685,2177.5,2176.8,1.15]
[1772652648051,0.42592685,2177.4,2176.5,7.02888781]
[1772652648235,0.42638171,2177.3,2176.5,7.02888781]
[1772652648552,5.80638543,2177.6,2176.5,7.02888781]
[1772652648763,0.42638073,2177.5,2176.5,7.02888781]
[1772652649055,0.42638073,2177.4,2176.5,7.02888781]
[1772652649253,0.42638073,2177.3,2176.5,10.83888781]
[1772652649426,0.42638073,2177.2,2176.5,10.83888781]
[1772652649627,0.42666001,2177.1,2176.5,7.02890097]
[1772652649827,0.42667764,2177.0,2176.5,1.15]
[1772652650048,5.80638543,2177.6,2176.5,1.15]
[1772652650360,5.80362421,2177.2,2176.5,1.15]
[1772652650529,0.42667764,2177.1,2176.2,6.9568534]
[1772652650726,0.42667764,2177.0,2176.2,2.29879058]
[1772652650945,1.14823593,2177.3,2176.3,4.65806282]
[1772652651150,0.42661156,2177.2,2176.3,4.65806282]
[1772652651350,1.14823593,2177.3,2176.3,4.65806282]
[1772652651527,0.42652717,2177.2,2176.3,4.65806282]
[1772652651724,1.14823593,2177.3,2176.3,4.65806282]
[1772652651938,0.42652619,2177.2,2176.3,4.65806282]
[1772652652140,0.42652619,2177.1,2176.3,4.65806282]
[1772652652327,1.14810562,2177.5,2176.7,1.14952758]
[1772652652527,0.4285086,2177.4,2176.7,1.14952758]
[1772652652752,0.4265086,2177.3,2176.7,1.14952758]
[1772652652953,0.4265086,2177.3,2176.8,1.15]
[1772652653363,0.002,2177.4,2176.8,1.15]
[1772652653364,0.002,2177.4,2176.8,4.65806282]
[1772652653531,0.42641724,2177.3,2176.7,0.001]
[1772652653856,0.42641724,2177.2,2176.7,0.001]
[1772652654059,0.002,2177.4,2176.7,0.001]
[1772652654259,0.42642427,2177.3,2176.7,4.65906282]
[1772652654465,0.002,2177.4,2176.8,5.80653764]
[1772652655759,0.002,2177.4,2176.7,1.14948406]
[1772652656570,0.002,2177.4,2176.7,1.10361881]
[1772652656933,0.002,2177.4,2176.8,3.81]
[1772652657638,0.42631897,2177.3,2176.8,3.81]
[1772652657839,4.65736039,2177.4,2176.6,1.151]
[1772652657840,1.55235222,2177.2,2176.6,1.151]
[1772652658048,0.002,2177.4,2176.6,2.29956764]
[1772652658253,0.42635812,2177.3,2176.6,2.29956764]
[1772652658439,0.42635812,2177.2,2176.6,2.29956764]
[1772652658634,1.14825404,2177.3,2176.6,2.29956764]
[1772652658870,0.42636629,2177.2,2176.6,2.29956764]
[1772652659164,1.14825404,2177.3,2176.7,4.65806282]
[1772652659341,0.42663261,2177.2,2176.7,4.68087684]
[1772652659539,1.14825404,2177.3,2176.7,4.68087684]
[1772652659740,0.42663457,2177.2,2176.7,4.68087684]
[1772652659934,1.14825404,2177.3,2176.7,4.68087684]
[1772652660275,0.42663261,2177.2,2176.7,4.68087684]
[1772652660471,0.42663261,2177.1,2176.5,3.811]
[1772652660641,0.42663261,2177.0,2176.7,4.65806282]
[1772652660848,0.002,2177.4,2176.9,4.65806282]
[1772652661042,0.42717848,2177.3,2177.0,1.152]
[1772652661239,1.15016554,2177.4,2177.0,1.152]
[1772652661443,0.42726611,2177.3,2177.0,1.152]
[1772652661671,1.15016554,2177.4,2177.0,1.152]
[1772652661851,0.42726219,2177.3,2176.9,3.81]
[1772652662051,0.42728573,2177.2,2177.0,1.152]
[1772652662244,1.15016554,2177.4,2177.0,1.152]
[1772652662573,0.42738493,2177.3,2177.0,1.152]
[1772652662775,1.57565109,2177.2,2177.0,1.152]
[1772652663073,1.14825389,2177.3,2177.0,1.152]
[1772652663264,0.42739474,2177.2,2177.0,1.152]
[1772652663472,1.14825389,2177.3,2177.0,1.152]
[1772652663648,0.42754228,2177.2,2177.0,1.152]
[1772652663977,1.15019838,2177.4,2177.0,2.30036562]
[1772652664172,0.42752658,2177.3,2177.0,1.152]
[1772652664470,0.42752658,2177.2,2177.0,1.152]
[1772652664643,0.002,2177.4,2177.0,1.152]
[1772652664843,0.4275905,2177.3,2177.0,1.152]
[1772652665045,0.4275905,2177.2,2177.0,1.152]
[1772652665241,0.002,2177.4,2177.0,1.152]
[1772652665458,0.42765855,2177.3,2177.0,1.152]
[1772652665657,0.42765855,2177.2,2177.0,1.152]
[1772652665873,0.002,2177.4,2177.0,2.30035765]
[1772652666062,0.42762321,2177.3,2177.2,0.001]
[1772652666577,0.42762321,2177.3,2176.8,1.154]
[1772652666780,1.14831656,2177.1,2176.8,1.154]
[1772652666948,0.42762321,2177.0,2176.5,0.001]
[1772652667148,0.42762321,2176.9,2176.5,0.001]
[1772652667457,0.42762321,2176.8,2176.5,0.001]
[1772652667657,0.42762321,2176.7,2176.5,0.001]
[1772652667853,1.14831656,2177.1,2176.5,0.001]
[1772652668057,0.42780614,2177.0,2176.5,0.001]
[1772652668359,0.42780614,2176.9,2176.5,0.001]
[1772652668681,0.42780614,2176.8,2176.5,0.001]
[1772652668845,1.57635857,2176.7,2176.5,0.001]
[1772652669048,0.42780614,2176.6,2176.5,0.001]
[1772652669243,0.42797321,2176.6,2176.5,0.001]
[1772652669447,1.14845771,2176.9,2176.5,0.001]
[1772652669667,0.42792997,2176.8,2176.5,0.001]
[1772652669868,0.42792997,2176.7,2176.5,0.001]
[1772652670064,1.14845771,2176.9,2176.5,0.001]
[1772652670268,0.42794569,2176.8,2176.5,0.001]
[1772652670477,0.42794569,2176.7,2176.5,0.001]
[1772652670663,0.42794569,2176.6,2176.5,0.001]
[1772652670864,0.42794569,2176.8,2176.5,0.001]
[1772652671187,0.42794569,2176.7,2176.5,0.001]
[1772652671353,0.42794569,2176.6,2176.5,0.001]
[1772652671760,0.42794569,2176.7,2176.5,0.001]
[1772652671963,0.42794569,2176.6,2176.5,0.001]
[1772652672159,0.42794569,2176.7,2176.5,0.001]
[1772652672372,0.42794569,2176.6,2176.5,0.001]
[1772652673071,1.57642281,2176.8,2176.5,0.001]
[1772652673274,4.59356407,2177.0,2176.5,0.001]
[1772652673275,0.42794569,2176.7,2176.5,0.001]
[1772652673474,1.14846069,2176.9,2176.5,0.001]
[1772652673475,0.42794569,2176.6,2176.5,0.001]
[1772652674962,1.57652604,2176.6,2176.5,0.001]
[1772652675162,0.42794569,2176.6,2176.5,0.001]
[1772652675483,1.57652604,2176.6,2176.5,0.001]
[1772652675793,0.42794569,2176.6,2176.5,0.001]
[1772652677202,1.57652604,2176.6,2176.2,4.65906282]
[1772652677360,0.42794569,2176.5,2176.2,4.65906282]
[1772652677559,0.42794569,2176.4,2176.2,5.80785254]
[1772652677881,1.14856227,2176.7,2176.2,4.65906282]